bitfinex/quotes_SOLUSD_20220311
["timestamp","ask_amount","ask_price","bid_price","bid_amount"]
[1646982106329,29.13675257,82.279,82.184,122.8]
[1646982106531,29.13675257,82.279,82.187,5.04200341]
[1646982106731,29.13675257,82.279,82.191,122.8]
[1646982106930,29.13675257,82.279,82.193,122.8]
[1646982107133,29.13675257,82.279,82.194,6.0]
[1646982107534,29.13675257,82.279,82.193,122.8]
[1646982107535,29.13675257,82.279,82.19,14.54]
[1646982107731,29.13675257,82.279,82.156,49.722]
[1646982107732,3.04447957,82.278,82.179,3.04447957]
[1646982107934,64.58032234,82.278,82.158,3.04447957]
[1646982108132,27.18675257,82.277,82.158,3.04447957]
[1646982108335,30.23123214,82.277,82.158,3.04447957]
[1646982108537,27.18675257,82.277,82.158,3.04447957]
[1646982108835,47.46956929,82.249,82.158,3.04447957]
[1646982109037,47.46956929,82.249,82.159,6.0]
[1646982109238,47.46956929,82.249,82.16,0.25]
[1646982109435,47.46956929,82.249,82.16,3.29447957]
[1646982109636,47.46956929,82.249,82.161,6.0]
[1646982109936,47.46956929,82.249,82.162,0.25]
[1646982110236,47.46956929,82.249,82.162,33.72879922]
[1646982110437,27.18675257,82.256,82.163,9.04447957]
[1646982110836,27.18675257,82.256,82.164,3.04447957]
[1646982111038,18.2449,82.25,82.164,3.04447957]
[1646982111241,18.2449,82.25,82.165,6.0]
[1646982111448,30.23123214,82.249,82.165,6.0]
[1646982111637,30.23123214,82.249,82.158,0.03]
[1646982111840,30.23123214,82.248,82.158,0.03]
[1646982112242,52.91793214,82.247,82.158,0.03]
[1646982112640,25.73117957,82.247,82.158,0.03]
[1646982113442,30.23123214,82.246,82.158,0.03]
[1646982113843,30.23123214,82.245,82.158,0.03]
[1646982114242,27.18675257,82.245,82.158,0.03]
[1646982114745,27.18675257,82.244,82.158,0.03]
[1646982114942,14.54,82.24,82.158,0.03]
[1646982115144,55.88023196,82.239,82.158,0.03]
[1646982116145,27.18675257,82.238,82.158,0.03]
[1646982116949,3.04447957,82.237,82.158,0.03]
[1646982117148,18.249,82.23,82.158,0.03]
[1646982117349,32.789,82.23,82.158,0.03]
[1646982117547,3.04447957,82.229,82.158,0.03]
[1646982118448,57.50350701,82.219,82.158,0.03]
[1646982120148,3.04447957,82.238,82.158,0.03]
[1646982120348,3.04447957,82.238,82.144,6.0]
[1646982120547,3.04447957,82.234,82.142,6.0]
[1646982121148,49.845436,82.232,82.14,6.03]
[1646982121348,49.845436,82.232,82.14,24.2788]
[1646982121547,3.04447957,82.231,82.14,24.2788]
[1646982122350,3.04447957,82.231,82.141,122.8]
[1646982122547,3.04447957,82.231,82.142,6.0]
[1646982122749,3.04447957,82.231,82.15,18.2467]
[1646982122946,14.54,82.23,82.151,6.0]
[1646982123348,3.04447957,82.229,82.151,6.0]
[1646982123548,3.04447957,82.229,82.141,6.0]
[1646982123749,14.54,82.23,82.141,6.0]
[1646982123947,3.04447957,82.229,82.141,6.0]
[1646982124649,3.04447957,82.229,82.15,18.2472]
[1646982124856,3.04447957,82.229,82.151,6.0]
[1646982125450,3.35086071,82.284,82.152,0.25]
[1646982125451,3.04447957,82.242,82.152,0.25]
[1646982125653,22.8003,82.25,82.161,122.8]
[1646982125849,22.8003,82.25,82.163,122.8]
[1646982126048,22.8003,82.25,82.164,6.0]
[1646982126248,60.58525358,82.246,82.164,6.0]
[1646982126452,60.58525358,82.246,82.165,122.8]
[1646982126749,60.58525358,82.246,82.166,6.0]
[1646982127157,3.04447957,82.245,82.166,6.0]
[1646982127352,29.34135656,82.245,82.156,6.0]
[1646982127552,29.34135656,82.245,82.153,6.0]
[1646982127749,29.34135656,82.244,82.153,6.0]
[1646982127949,29.34135656,82.244,82.153,128.8]
[1646982128149,29.34135656,82.243,82.153,131.84447957]
[1646982128348,26.29687699,82.243,82.153,131.84447957]
[1646982128549,26.29687699,82.243,82.153,128.8]
[1646982129151,3.04447957,82.242,82.153,6.0]
[1646982129551,29.34135656,82.242,82.153,6.0]
[1646982129955,3.04447957,82.241,82.153,128.8]
[1646982130152,60.58525358,82.246,82.16,18.2453]
[1646982130353,26.29687699,82.241,82.161,6.0]
[1646982130580,26.29687699,82.241,82.166,0.03]
[1646982130753,3.04447957,82.24,82.166,0.03]
[1646982131052,26.29687699,82.241,82.166,0.03]
[1646982131253,26.29687699,82.239,82.166,0.03]
[1646982131450,18.2474,82.23,82.166,0.03]
[1646982131858,23.4218,82.238,82.166,0.03]
[1646982132252,49.71867699,82.238,82.166,0.03]
[1646982132954,23.4218,82.238,82.166,0.03]
[1646982133956,23.4218,82.238,82.166,61.05]
[1646982134154,23.4218,82.238,82.167,192.86447957]
[1646982134353,23.4218,82.238,82.167,183.82]
[1646982134553,23.4218,82.238,82.168,6.0]
[1646982136757,3.04447957,82.261,82.169,60.0]
[1646982136956,1.67543036,82.269,82.17,174.5359]
[1646982137160,1.67543036,82.283,82.171,0.25]
[1646982137355,3.04447957,82.284,82.171,0.25]
[1646982137559,3.04447957,82.284,82.173,122.8]
[1646982137758,63.62580547,82.283,82.175,122.8]
[1646982137956,63.62580547,82.283,82.178,61.02]
[1646982138159,63.62580547,82.283,82.183,122.8]
[1646982138358,18.2361,82.28,82.187,183.82]
[1646982138560,18.2361,82.28,82.188,6.0]
[1646982139258,63.62580547,82.283,82.188,6.0]
[1646982139462,63.62580547,82.283,82.189,122.8]
[1646982139663,66.67028504,82.283,82.191,122.8]
[1646982139864,66.67028504,82.283,82.192,6.0]
[1646982140072,63.62580547,82.283,82.192,6.0]
[1646982140566,55.14657549,82.259,82.192,6.0]
[1646982140971,18.2412,82.26,82.19,18.2392]
[1646982141188,1.67543036,82.287,82.191,128.8]
[1646982141371,0.61054796,82.292,82.198,73.68]
[1646982141571,0.61054796,82.292,82.209,122.8]
[1646982141773,0.61054796,82.292,82.211,122.8]
[1646982141972,0.61054796,82.292,82.216,61.02]
[1646982142171,0.61054796,82.292,82.221,122.8]
[1646982142372,0.61054796,82.292,82.227,122.8]
[1646982142576,0.61054796,82.292,82.228,6.0]
[1646982142774,0.61054796,82.292,82.229,122.8]
[1646982142976,0.61054796,82.292,82.23,6.0]
[1646982143173,0.61054796,82.292,82.231,170.8123]
[1646982143476,0.61054796,82.292,82.232,6.0]
[1646982143673,0.61054796,82.292,82.233,122.8]
[1646982143873,0.61054796,82.292,82.235,122.8]
[1646982144072,0.61054796,82.292,82.237,122.8]
[1646982144273,0.61054796,82.292,82.24,61.02]
[1646982144473,0.61054796,82.292,82.246,61.02]
[1646982144673,0.61054796,82.292,82.247,128.8]
[1646982144874,0.61054796,82.292,82.247,67.02]
[1646982145076,0.61054796,82.292,82.247,70.06447957]
[1646982145273,0.61054796,82.292,82.248,27.68057957]
[1646982145473,0.61054796,82.292,82.249,6.0]
[1646982146092,48.6794,82.329,82.251,122.8]
[1646982146593,48.6794,82.329,82.252,6.0]
[1646982146891,48.6794,82.329,82.253,122.8]
[1646982147093,48.6794,82.329,82.254,6.0]
[1646982147493,48.6794,82.329,82.255,122.8]
[1646982147695,48.6794,82.329,82.256,6.0]
[1646982147893,48.6794,82.329,82.257,122.8]
[1646982148097,48.6794,82.329,82.258,6.0]
[1646982148495,48.6794,82.329,82.259,122.8]
[1646982148695,48.6794,82.329,82.26,6.0]
[1646982149196,48.6794,82.329,82.26,9.04447957]
[1646982149395,48.6794,82.329,82.261,3.04447957]
[1646982149593,48.6794,82.329,82.251,122.8]
[1646982149794,48.6794,82.329,82.252,6.0]
[1646982150297,48.6794,82.329,82.251,6.0]
[1646982151002,48.6794,82.329,82.251,9.04447957]
[1646982151204,18.2298,82.31,82.251,6.0]
[1646982151403,59.53680405,82.309,82.248,24.6361]
[1646982152602,3.04447957,82.322,82.248,24.6361]
[1646982152809,48.6794,82.329,82.248,24.6361]
[1646982153003,3.04447957,82.328,82.248,24.6361]
[1646982153207,3.04447957,82.328,82.249,122.8]
[1646982153404,26.29841676,82.327,82.249,122.8]
[1646982154203,26.29841676,82.327,82.25,6.0]
[1646982155204,48.6794,82.329,82.25,6.0]
[1646982155905,48.6794,82.329,82.251,122.8]
[1646982156104,48.6794,82.329,82.252,6.0]
[1646982156309,48.6794,82.329,82.253,0.25]
[1646982156507,48.6794,82.329,82.253,123.05]
[1646982156806,48.6794,82.329,82.254,6.0]
[1646982157008,48.6794,82.329,82.255,0.25]
[1646982158208,48.6794,82.329,82.256,3.04447957]
[1646982158407,48.6794,82.329,82.258,122.8]
[1646982158608,48.6794,82.329,82.26,122.8]
[1646982158811,48.6794,82.329,82.261,6.0]
[1646982159812,48.6794,82.329,82.261,9.04447957]
[1646982160514,48.6794,82.329,82.262,122.8]
[1646982160712,48.6794,82.329,82.263,6.0]
[1646982160912,48.6794,82.329,82.261,9.04447957]
[1646982161513,48.6794,82.329,82.259,24.4404]
[1646982162213,3.04447957,82.328,82.259,24.4404]
[1646982162413,152.14289633,82.328,82.232,3.04447957]
[1646982162613,26.29841676,82.327,82.233,30.333]
[1646982162813,60.775,82.32,82.233,30.333]
[1646982163016,58.25814303,82.319,82.233,30.333]
[1646982163217,23.9456,82.318,82.233,30.333]
[1646982163612,3.04447957,82.317,82.233,30.333]
[1646982164213,125.84447957,82.317,82.233,6.0]
[1646982164415,18.2317,82.3,82.203,6.0]
[1646982164614,100.50376885,82.299,82.204,0.25]
[1646982165113,100.50376885,82.299,82.205,122.8]
[1646982165313,3.04447957,82.298,82.207,122.8]
[1646982165513,46.503,82.299,82.208,6.0]
[1646982165913,46.503,82.299,82.209,122.8]
[1646982166116,46.503,82.299,82.21,6.0]
[1646982166315,46.503,82.299,82.211,122.8]
[1646982166520,46.503,82.299,82.213,122.8]
[1646982166717,46.503,82.299,82.22,14.54]
[1646982166920,46.503,82.299,82.223,122.8]
[1646982167118,46.503,82.299,82.229,122.8]
[1646982167318,54.1980397,82.32,82.231,122.8]
[1646982167518,54.1980397,82.32,82.232,6.0]
[1646982167919,27.47727957,82.319,82.232,6.0]
[1646982168620,51.70267957,82.319,82.231,128.8]
[1646982168919,48.6582,82.319,82.231,6.0]
[1646982169522,125.84447957,82.318,82.231,6.0]
[1646982169721,18.2296,82.31,82.231,6.0]
[1646982170122,3.04447957,82.309,82.231,6.0]
[1646982170723,64.02319904,82.299,82.231,6.0]
[1646982171124,3.04447957,82.298,82.231,6.0]
[1646982172346,64.02319904,82.299,82.231,6.0]
[1646982172544,3.04447957,82.307,82.231,6.0]
[1646982173648,54.54512539,82.306,82.231,6.0]
[1646982174050,3.04447957,82.305,82.231,6.0]
[1646982174550,41.13067656,82.306,82.231,6.0]
[1646982174750,3.04447957,82.305,82.231,6.0]
[1646982174952,18.2316,82.3,82.231,6.0]
[1646982175354,3.04447957,82.305,82.231,6.0]
[1646982180158,3.04447957,82.305,82.231,128.8]
[1646982180358,41.13067656,82.306,82.239,122.8]
[1646982180558,41.13067656,82.306,82.241,122.8]
[1646982180961,41.13067656,82.306,82.24,24.0781]
[1646982184761,41.13067656,82.306,82.231,6.0]
[1646982184962,18.232,82.3,82.231,6.0]
[1646982185364,3.04447957,82.299,82.231,6.0]
[1646982185962,41.13067656,82.306,82.231,6.0]
[1646982186167,3.04447957,82.305,82.231,6.0]
[1646982187565,41.13067656,82.306,82.231,6.0]
[1646982187766,41.13067656,82.306,82.231,9.04447957]
[1646982188065,41.13067656,82.306,82.231,6.0]
[1646982188864,41.13067656,82.306,82.232,23.8015]
[1646982189064,41.13067656,82.306,82.233,6.0]
[1646982189766,3.04447957,82.305,82.233,6.0]
[1646982190594,3.04447957,82.305,82.198,61.02]
[1646982190595,122.8,82.303,82.198,61.02]
[1646982190767,187.41058496,82.289,82.199,30.1305]
[1646982190967,122.8,82.279,82.199,24.1305]
[1646982191169,60.8046,82.28,82.199,24.1305]
[1646982191170,24.4262,82.278,82.199,24.1305]
[1646982191368,147.2262,82.278,82.199,24.1305]
[1646982191567,3.04447957,82.277,82.175,50.38169412]
[1646982191770,60.43967856,82.276,82.178,23.94554523]
[1646982191968,60.43967856,82.276,82.197,3.04447957]
[1646982192170,60.43967856,82.276,82.198,6.0]
[1646982192369,60.43967856,82.276,82.197,3.04447957]
[1646982192570,14.54,82.28,82.199,3.04447957]
[1646982192770,14.54,82.28,82.2,23.0166]
[1646982192971,14.54,82.28,82.201,128.8]
[1646982193182,24.6593,82.293,82.201,157.52335813]
[1646982193376,24.6593,82.293,82.202,3.29447957]
[1646982193675,24.6593,82.293,82.203,128.8]
[1646982193874,24.6593,82.293,82.203,183.95950702]
[1646982194073,24.6593,82.293,82.205,122.8]
[1646982194273,24.6593,82.293,82.206,67.02]
[1646982194472,24.6593,82.293,82.209,122.8]
[1646982194672,24.6593,82.293,82.21,6.0]
[1646982194872,62.26588247,82.292,82.21,24.2308]
[1646982195074,62.26588247,82.292,82.21,27.27527957]
[1646982195277,23.8325,82.291,82.211,26.06107957]
[1646982195474,23.8325,82.291,82.212,6.0]
[1646982195676,23.8325,82.291,82.212,9.04447957]
[1646982195875,23.8325,82.291,82.213,3.04447957]
[1646982196077,122.8,82.29,82.214,6.0]
[1646982196280,3.04447957,82.29,82.214,6.0]
[1646982196477,150.409563,82.289,82.175,23.6042]
[1646982196678,181.08816692,82.289,82.175,23.6042]
[1646982196879,181.08816692,82.289,82.186,3.04447957]
[1646982196880,29.60289633,82.288,82.186,3.04447957]
[1646982197076,18.2382,82.27,82.186,3.04447957]
[1646982197279,47.16820449,82.268,82.178,23.924]
[1646982197481,23.9353,82.267,82.179,3.04447957]
[1646982197676,23.9353,82.267,82.18,6.0]
[1646982198095,23.9353,82.267,82.181,15.64066221]
[1646982198297,23.9353,82.267,82.182,128.8]
[1646982198498,23.9353,82.267,82.182,144.44066221]
[1646982198699,23.9353,82.267,82.183,3.04447957]
[1646982198903,23.9353,82.267,82.184,128.8]
[1646982199397,23.9353,82.267,82.186,122.8]
[1646982199596,23.9353,82.267,82.187,6.0]
[1646982199797,23.9353,82.267,82.187,9.04447957]
[1646982201504,18.2405,82.26,82.187,9.04447957]
[1646982201702,23.1212,82.259,82.187,6.0]
[1646982201901,23.1212,82.259,82.186,6.0]
[1646982202503,23.1212,82.259,82.186,128.8]
[1646982202704,23.1212,82.259,82.187,3.04447957]
[1646982202904,23.1212,82.259,82.188,6.0]
[1646982203503,23.1212,82.259,82.188,9.04447957]
[1646982203903,23.1212,82.259,82.188,6.0]
[1646982204106,23.1212,82.259,82.186,6.0]
[1646982205808,23.1212,82.259,82.187,3.04447957]
[1646982206006,23.1212,82.259,82.188,6.0]
[1646982206409,23.1212,82.259,82.189,27.35966975]
[1646982206611,23.1212,82.259,82.19,24.2353]
[1646982206808,23.1212,82.259,82.19,51.59496975]
[1646982207010,23.9353,82.267,82.191,147.11519018]
[1646982207211,23.9353,82.267,82.192,6.0]
[1646982207410,23.9353,82.267,82.193,122.8]
[1646982207812,23.9353,82.267,82.194,6.0]
[1646982208009,23.9353,82.267,82.195,122.8]
[1646982208210,23.9353,82.267,82.196,6.0]
[1646982208413,23.9353,82.267,82.198,183.82]
[1646982208612,3.04447957,82.293,82.199,6.0]
[1646982208815,23.6209,82.297,82.21,14.54]
[1646982209014,23.6209,82.297,82.211,175.551]
[1646982209219,23.6209,82.297,82.211,199.86619018]
[1646982209510,23.6209,82.297,82.213,122.8]
[1646982209712,23.6209,82.297,82.215,122.8]
[1646982209915,23.6209,82.297,82.217,122.8]
[1646982210113,23.6209,82.297,82.218,6.0]
[1646982210314,23.6209,82.297,82.221,122.8]
[1646982210514,23.6209,82.297,82.227,122.8]
[1646982210714,23.6209,82.297,82.222,6.25]
[1646982210715,23.6209,82.297,82.229,122.8]
[1646982210918,23.6209,82.297,82.23,6.0]
[1646982211317,23.6209,82.297,82.231,3.04447957]
[1646982211517,23.6209,82.297,82.232,6.0]
[1646982211922,23.6209,82.297,82.233,3.04447957]
[1646982212120,23.6209,82.297,82.234,6.0]
[1646982212522,23.6209,82.297,82.235,3.04447957]
[1646982212725,23.6209,82.297,82.236,6.0]
[1646982213824,23.6209,82.297,82.237,3.04447957]
[1646982214923,23.6209,82.297,82.238,6.0]
[1646982215123,18.2275,82.32,82.238,6.0]
[1646982215124,26.22724498,82.33,82.238,6.0]
[1646982215326,3.5703,82.417,82.241,122.8]
[1646982215327,24.4295,82.339,82.241,122.8]
[1646982215526,24.4295,82.339,82.243,122.8]
[1646982215825,24.4295,82.339,82.245,122.8]
[1646982216026,54.38065295,82.338,82.247,122.8]
[1646982216225,54.38065295,82.338,82.248,6.0]
[1646982216426,54.38065295,82.338,82.25,122.8]
[1646982216625,54.38065295,82.338,82.254,122.8]
[1646982216853,24.4295,82.339,82.258,122.8]
[1646982217053,24.4295,82.339,82.26,122.8]
[1646982217250,24.4295,82.339,82.261,6.0]
[1646982217852,24.4295,82.339,82.26,128.8]
[1646982218257,24.4295,82.339,82.262,3.04447957]
[1646982218457,24.4295,82.339,82.263,6.0]
[1646982218856,24.4295,82.339,82.264,3.04447957]
[1646982219058,24.4295,82.339,82.265,6.0]
[1646982219460,24.4295,82.339,82.266,3.04447957]
[1646982219660,24.4295,82.339,82.267,6.0]
[1646982220060,24.4295,82.339,82.268,3.04447957]
[1646982220259,24.4295,82.339,82.269,6.0]
[1646982220661,24.4295,82.339,82.27,22.7378]
[1646982220960,24.4295,82.339,82.271,6.0]
[1646982221762,24.4295,82.339,82.271,128.8]
[1646982224065,24.4295,82.339,82.272,3.04447957]
[1646982224264,24.4295,82.339,82.273,6.0]
[1646982225967,24.4295,82.339,82.274,122.8]
[1646982226168,24.4295,82.339,82.275,6.0]
[1646982226366,22.5944,82.359,82.275,9.04447957]
[1646982226567,22.5944,82.359,82.276,146.9274]
[1646982226768,22.5944,82.359,82.28,122.8]
[1646982226969,24.0954,82.369,82.286,73.68]
[1646982227169,24.0954,82.369,82.288,257.5]
[1646982227369,23.2958,82.397,82.288,257.5]
[1646982227370,23.2958,82.397,82.3,14.54]
[1646982227569,1.67543036,82.429,82.301,225.8257]
[1646982227866,18.1017,82.467,82.301,225.8257]
[1646982227867,24.0954,82.441,82.302,5.12810424]
[1646982228072,61.93427649,82.439,82.304,257.5]
[1646982228267,61.93427649,82.439,82.322,5.02994482]
[1646982228476,61.93427649,82.439,82.331,122.8]
[1646982228668,29.20527059,82.438,82.333,183.82]
[1646982228871,55.43251557,82.438,82.334,6.0]
[1646982229170,26.22724498,82.437,82.334,6.0]
[1646982229368,55.43251557,82.437,82.336,61.02]
[1646982229572,32.24975016,82.436,82.34,18.2033]
[1646982229773,73.06443268,82.436,82.341,6.0]
[1646982229974,58.47699514,82.435,82.341,6.0]
[1646982230371,29.27172455,82.434,82.337,6.0]
[1646982230772,43.85916209,82.433,82.337,9.04447957]
[1646982230973,18.2051,82.42,82.337,9.04447957]
[1646982231973,65.66449793,82.422,82.34,18.2046]
[1646982232187,65.66449793,82.422,82.341,128.8]
[1646982232383,24.2703,82.431,82.341,128.8]
[1646982232583,24.2703,82.431,82.341,6.0]
[1646982232782,24.2703,82.431,82.338,6.0]
[1646982232982,50.49754498,82.431,82.338,6.0]
[1646982233187,50.49754498,82.431,82.338,9.04447957]
[1646982233383,47.49833798,82.43,82.338,9.04447957]
[1646982233888,50.49754498,82.431,82.35,18.2024]
[1646982234086,50.49754498,82.431,82.351,6.0]
[1646982234986,59.8462873,82.43,82.351,6.0]
[1646982235483,59.8462873,82.43,82.352,3.04447957]
[1646982235703,59.8462873,82.43,82.353,6.0]
[1646982235905,59.8462873,82.43,82.354,23.4824]
[1646982236105,59.8462873,82.43,82.355,6.0]
[1646982236511,24.2703,82.431,82.36,18.198]
[1646982236707,24.2703,82.431,82.361,6.0]
[1646982237313,24.2703,82.431,82.356,6.0]
[1646982237612,50.85209816,82.43,82.355,6.0]
[1646982238409,50.85209816,82.43,82.355,128.8]
[1646982238612,50.85209816,82.43,82.355,6.0]
[1646982239214,24.2703,82.431,82.355,6.0]
[1646982239412,24.2703,82.431,82.355,131.84447957]
[1646982240011,24.2703,82.431,82.36,18.1987]
[1646982240213,49.1208517,82.43,82.361,6.0]
[1646982240415,49.1208517,82.43,82.361,9.04447957]
[1646982240717,49.1208517,82.43,82.355,122.8]
[1646982240912,49.1208517,82.43,82.356,6.0]
[1646982241514,49.1208517,82.43,82.354,23.4824]
[1646982241515,49.1208517,82.43,82.355,6.0]
[1646982241812,49.1208517,82.43,82.355,128.8]
[1646982242011,49.1208517,82.43,82.356,3.04447957]
[1646982242212,49.1208517,82.43,82.357,6.0]
[1646982242612,49.1208517,82.43,82.358,3.04447957]
[1646982242812,49.1208517,82.43,82.359,6.0]
[1646982243213,49.1208517,82.43,82.359,9.04447957]
[1646982243914,24.2703,82.431,82.359,9.04447957]
[1646982244715,24.2703,82.431,82.36,18.1993]
[1646982244919,50.25020071,82.43,82.361,6.0]
[1646982245114,24.2703,82.431,82.361,6.0]
[1646982246115,49.91226746,82.43,82.361,6.0]
[1646982246319,24.2703,82.431,82.361,128.8]
[1646982246518,26.22724498,82.449,82.361,128.8]
[1646982246723,0.1,82.571,82.372,4.30684137]
[1646982246724,1.17543036,82.477,82.372,4.30684137]
[1646982246917,46.6512,82.489,82.379,61.02]
[1646982247115,46.6512,82.489,82.384,73.68]
[1646982247319,46.6512,82.489,82.389,122.8]
[1646982247518,46.6512,82.489,82.391,183.82]
[1646982247716,46.6512,82.489,82.397,122.8]
[1646982247915,46.6512,82.489,82.401,122.8]
[1646982248223,0.04366122,82.49,82.409,122.8]
[1646982248416,0.04366122,82.49,82.41,20.54]
[1646982248617,0.04366122,82.49,82.402,30.7814]
[1646982248618,0.04366122,82.49,82.411,6.0]
[1646982248817,0.04366122,82.49,82.411,9.04447957]
[1646982249018,0.04366122,82.49,82.412,24.5314]
[1646982249217,0.04366122,82.49,82.42,14.54]
[1646982249417,0.04366122,82.49,82.43,18.1788]
[1646982249619,0.04366122,82.49,82.431,128.8]
[1646982250021,0.04366122,82.49,82.431,131.84447957]
[1646982250220,0.04366122,82.49,82.432,3.29447957]
[1646982250419,0.04366122,82.49,82.433,128.8]
[1646982250719,0.04366122,82.49,82.446,73.68]
[1646982250921,0.04366122,82.49,82.461,122.8]
[1646982251119,18.1764,82.55,82.464,61.02]
[1646982251320,46.9917,82.556,82.465,6.0]
[1646982251620,10.32421625,82.567,82.47,14.54]
[1646982251822,23.1641,82.577,82.472,73.68]
[1646982252022,23.1641,82.577,82.49,18.1651]
[1646982252221,23.1641,82.577,82.492,122.8]
[1646982252423,23.1641,82.577,82.493,6.0]
[1646982252624,23.1641,82.577,82.494,122.8]
[1646982252821,23.1641,82.577,82.495,6.0]
[1646982253025,23.1641,82.577,82.498,183.82]
[1646982253323,23.1641,82.577,82.499,6.0]
[1646982253621,23.1641,82.577,82.499,9.04447957]
[1646982253825,23.1641,82.577,82.5,3.04447957]
[1646982254023,23.1641,82.577,82.501,6.0]
[1646982254222,23.1641,82.577,82.51,18.1653]
[1646982254424,23.1641,82.577,82.511,6.0]
[1646982255026,47.1166,82.581,82.511,6.0]
[1646982255324,57.81320567,82.58,82.511,6.0]
[1646982255522,57.81320567,82.58,82.502,6.0]
[1646982255921,57.81320567,82.58,82.491,6.0]
[1646982256322,57.81320567,82.58,82.491,3.04447957]
[1646982256522,57.81320567,82.58,82.5,18.1677]
[1646982256723,57.81320567,82.58,82.501,6.0]
[1646982256928,57.81320567,82.58,82.501,67.02]
[1646982257223,47.1166,82.581,82.501,67.02]
[1646982257423,47.1166,82.581,82.504,122.8]
[1646982257626,47.1166,82.581,82.508,122.8]
[1646982257827,47.1166,82.581,82.509,6.0]
[1646982258126,47.1166,82.581,82.511,122.8]
[1646982258326,47.1166,82.581,82.512,6.0]
[1646982258927,47.1166,82.581,82.46,60.5702]
[1646982259127,122.8,82.58,82.483,3.04447957]
[1646982259327,57.39915161,82.56,82.475,61.02]
[1646982259727,3.04447957,82.559,82.475,61.02]
[1646982260028,30.03820254,82.559,82.475,61.02]
[1646982260230,18.1765,82.55,82.475,61.02]
[1646982260631,18.1765,82.55,82.482,6.0]
[1646982261028,45.17022297,82.55,82.482,6.0]
[1646982261229,3.04447957,82.549,82.482,6.0]
[1646982261633,57.93130449,82.539,82.461,22.8699]
[1646982262034,30.03820254,82.538,82.461,22.8699]
[1646982262432,30.03820254,82.537,82.461,22.8699]
[1646982262634,18.1809,82.53,82.461,22.8699]
[1646982264437,34.0248692,82.529,82.442,3.04447957]
[1646982264634,122.8,82.518,82.442,3.04447957]
[1646982264834,122.8,82.518,82.382,122.8]
[1646982265036,122.8,82.516,82.381,47.4825]
[1646982265439,18.194,82.48,82.381,47.4825]
[1646982265639,63.19567251,82.478,82.381,47.4825]
[1646982265837,63.19567251,82.478,82.382,122.8]
[1646982266039,63.19567251,82.478,82.381,47.4825]
[1646982266442,96.37334889,82.478,82.381,47.4825]
[1646982266642,141.63527937,82.477,82.381,47.4825]
[1646982266843,144.67975894,82.477,82.381,47.4825]
[1646982267044,122.8,82.475,82.381,47.4825]
[1646982267242,14.54,82.46,82.381,47.4825]
[1646982267441,14.54,82.46,82.371,12.65107426]
[1646982267442,51.20449543,82.459,82.371,12.65107426]
[1646982267643,54.248975,82.459,82.352,46.9929]
[1646982267845,106.26193075,82.459,82.353,122.8]
[1646982268046,55.05743532,82.458,82.353,122.8]
[1646982268447,51.20449543,82.459,82.354,3.04447957]
[1646982268644,51.20449543,82.459,82.354,27.98550803]
[1646982268846,51.20449543,82.459,82.355,122.8]
[1646982269045,51.20449543,82.459,82.356,0.25]
[1646982269244,51.20449543,82.459,82.361,122.8]
[1646982269665,3.04447957,82.458,82.36,18.1976]
[1646982269868,34.57548929,82.458,82.36,18.1976]
[1646982270066,31.53100972,82.457,82.36,18.1976]
[1646982270267,34.57548929,82.457,82.361,122.8]
[1646982270466,34.57548929,82.457,82.371,122.8]
[1646982270668,31.53100972,82.456,82.371,122.8]